fUSD/lending_fUSD_20250414
["ID","MTS","AMOUNT","RATE_DAILY","PERIOD"]
[357968625,1744629041882,-500.0,0.00019178,2]
[357968626,1744629041892,-500.0,0.00019178,2]
[357968627,1744629041902,-500.0,0.00019178,2]
[357968628,1744629041912,-500.0,0.00019178,2]
[357968629,1744629041922,-500.0,0.00019178,2]
[357968630,1744629041933,-500.0,0.00019178,2]
[357968631,1744629041943,-974.07,0.00019178,2]
[357968632,1744629041952,-517.68399656,0.00019178,2]
[357968633,1744629041962,-500.0,0.00019178,2]
[357968634,1744629041971,-500.0,0.00019178,2]
[357968635,1744629041981,-230.90256162,0.00019178,2]
[357968636,1744629041992,-500.0,0.00019178,2]
[357968637,1744629042002,-500.0,0.00019178,2]
[357968638,1744629042013,-500.0,0.00019178,2]
[357968639,1744629042023,-500.0,0.00019178,2]
[357968640,1744629042033,-500.0,0.00019178,2]
[357968641,1744629042042,-632.76,0.00019178,2]
[357968642,1744629042055,-500.0,0.00019178,2]
[357968643,1744629042065,-500.0,0.00019178,2]
[357968644,1744629042074,-500.0,0.00019178,2]
[357968645,1744629042084,-500.0,0.00019178,2]
[357968646,1744629042096,-500.0,0.00019178,2]
[357968647,1744629042106,-500.0,0.00019178,2]
[357968648,1744629042115,-500.0,0.00019178,2]
[357968649,1744629042126,-500.0,0.00019178,2]
[357968650,1744629042135,-500.0,0.00019178,2]
[357968651,1744629042145,-354.20225919,0.00019178,2]
[357968652,1744629042155,-500.0,0.00019178,2]
[357968653,1744629042165,-370.04999995,0.00019178,2]
[357968654,1744629042175,-500.0,0.00019178,2]
[357968655,1744629042185,-440.40168611,0.00019178,2]
[357968656,1744629042195,-500.0,0.00019178,2]
[357968657,1744629042205,-545.37389088,0.00019178,2]
[357968658,1744629042215,-179.39370182,0.00019178,2]
[357968659,1744629042224,-500.0,0.00019178,2]
[357968660,1744629042234,-500.0,0.00019178,2]
[357968661,1744629042244,-500.0,0.00019178,2]
[357968662,1744629042255,-500.0,0.00019178,2]
[357968663,1744629042265,-197.30322442,0.00019178,2]
[357968664,1744629042275,-500.0,0.00019178,2]
[357968665,1744629042285,-645.97,0.00019178,2]
[357968666,1744629042295,-500.0,0.00019178,2]
[357968667,1744629042309,-500.0,0.00019178,2]
[357968668,1744629042319,-500.0,0.00019178,2]
[357968669,1744629042329,-522.59,0.00019178,2]
[357968670,1744629042338,-864.37,0.00019178,2]
[357968671,1744629042348,-500.0,0.00019178,2]
[357968672,1744629042357,-500.0,0.00019178,2]
[357968673,1744629042367,-500.0,0.00019178,2]
[357968674,1744629042376,-500.0,0.00019178,2]
[357968675,1744629042386,-505.36614645,0.00019178,2]
[357968676,1744629042396,-2000.0,0.00019178,2]
[357968677,1744629042406,-500.0,0.00019178,2]
[357968678,1744629042416,-500.0,0.00019178,2]
[357968679,1744629042426,-500.0,0.00019178,2]
[357968680,1744629042439,-500.0,0.00019178,2]
[357968681,1744629042450,-500.0,0.00019178,2]
[357968682,1744629042460,-500.0,0.00019178,2]
[357968683,1744629042471,-500.0,0.00019178,2]
[357968684,1744629042482,-509.21,0.00019178,2]
[357968685,1744629042492,-500.0,0.00019178,2]
[357968686,1744629042502,-500.0,0.00019178,2]
[357968687,1744629042512,-500.0,0.00019178,2]
[357968688,1744629042522,-500.0,0.00019178,2]
[357968689,1744629042532,-500.0,0.00019178,2]
[357968690,1744629042542,-500.0,0.00019178,2]
[357968691,1744629042555,-500.0,0.00019178,2]
[357968692,1744629042565,-500.0,0.00019178,2]
[357968693,1744629042575,-500.0,0.00019178,2]
[357968694,1744629042585,-1115.58,0.00019178,2]
[357968695,1744629042594,-500.0,0.00019178,2]
[357968696,1744629042603,-500.0,0.00019178,2]
[357968697,1744629042613,-500.0,0.00019178,2]
[357968698,1744629042623,-500.0,0.00019178,2]
[357968699,1744629042632,-432.8462422,0.00019261,2]
[357968700,1744629042642,-679.25161555,0.00019284,2]
[357968701,1744629042652,-432.8462422,0.00019352,2]
[357968702,1744629042662,-816.41,0.00019442,2]
[357968703,1744629042671,-432.8462422,0.00019443,2]
[357968704,1744629042681,-500.0,0.00019451,2]
[357968705,1744629042691,-500.0,0.00019451,2]
[357968706,1744629042700,-500.0,0.00019452,2]
[357968707,1744629042710,-500.0,0.00019452,2]
[357968708,1744629042719,-171.62,0.00019452,2]
[357968711,1744629042730,-493.68,0.00019452,2]
[357968712,1744629042740,-873.57,0.00019452,2]
[357968716,1744629042927,-500.0,0.00019452,2]
[357968719,1744629042937,-401.2,0.00019452,2]
[357968720,1744629042946,-526.7,0.00019452,2]
[357968721,1744629042956,-500.0,0.00019452,2]
[357968722,1744629042965,-500.0,0.00019452,2]
[357968723,1744629042975,-500.0,0.00019452,2]
[357968724,1744629042984,-194.75,0.00019452,2]
[357968725,1744629042993,-467.53266097,0.00019452,2]
[357968726,1744629043003,-500.0,0.00019452,2]
[357968727,1744629043016,-500.0,0.00019452,2]
[357968728,1744629043025,-500.0,0.00019452,2]
[357968729,1744629043035,-500.0,0.00019452,2]
[357968730,1744629043044,-500.0,0.00019452,2]
[357968731,1744629043056,-500.0,0.00019452,2]
[357968732,1744629043066,-500.0,0.00019452,2]
[357968733,1744629043075,-382.36,0.00019452,2]
[357968734,1744629043086,-500.0,0.00019452,2]
[357968735,1744629043097,-500.0,0.00019452,2]
[357968736,1744629043107,-500.0,0.00019452,2]
[357968737,1744629043116,-411.69084837,0.00019452,2]
[357968738,1744629043126,-459.29611256,0.00019452,2]
[357968739,1744629043135,-500.0,0.00019452,2]
[357968740,1744629043145,-755.68,0.00019452,2]
[357968741,1744629043155,-500.0,0.00019452,2]
[357968742,1744629043164,-500.0,0.00019452,2]
[357968743,1744629043174,-500.0,0.00019452,2]
[357968744,1744629043184,-405.99,0.00019452,2]
[357968745,1744629043193,-500.0,0.00019452,2]
[357968746,1744629043203,-500.0,0.00019452,2]
[357968747,1744629043212,-500.0,0.00019452,2]
[357968748,1744629043221,-262.58,0.00019452,2]
[357968749,1744629043230,-241.15,0.00019452,2]
[357968750,1744629043240,-500.0,0.00019452,2]
[357968751,1744629043250,-500.0,0.00019452,2]
[357968752,1744629043259,-176.89006173,0.00019452,2]
[357968753,1744629043269,-500.0,0.00019452,2]
[357968754,1744629043278,-500.0,0.00019452,2]
[357968755,1744629043288,-500.0,0.00019452,2]
[357968756,1744629043299,-500.0,0.00019452,2]
[357968757,1744629043308,-500.0,0.00019452,2]
[357968758,1744629043318,-306.40127736,0.00019452,2]
[357968759,1744629043327,-160.84,0.00019452,2]
[357968760,1744629043336,-500.0,0.00019452,2]
[357968761,1744629043345,-500.0,0.00019452,2]
[357968762,1744629043355,-769.05,0.00019452,2]
[357968763,1744629043365,-537.89,0.00019452,2]
[357968764,1744629043374,-156.80770081,0.00019452,2]
[357968765,1744629043384,-500.0,0.00019452,2]
[357968766,1744629043394,-545.78,0.00019452,2]
[357968767,1744629043403,-263.72,0.00019452,2]
[357968768,1744629043412,-560.49,0.00019452,2]
[357968769,1744629043421,-1231.85,0.00019452,2]
[357968770,1744629043430,-500.0,0.00019452,2]
[357968771,1744629043439,-28008.01,0.00019452,2]
[357968772,1744629043449,-500.0,0.00019452,2]
[357968773,1744629043459,-500.0,0.00019452,2]
[357968774,1744629043468,-500.0,0.00019452,2]
[357968775,1744629043478,-500.0,0.00019452,2]
[357968776,1744629043487,-500.0,0.00019452,2]
[357968777,1744629043499,-500.0,0.00019452,2]
[357968778,1744629043508,-3401.1,0.00019452,2]
[357968779,1744629043519,-500.0,0.00019452,2]
[357968780,1744629043528,-974.07,0.00019452,2]
[357968781,1744629043537,-512.76,0.00019452,2]
[357968782,1744629043547,-500.0,0.00019452,2]
[357968783,1744629043558,-500.0,0.00019452,2]
[357968784,1744629043567,-500.0,0.00019452,2]
[357968785,1744629043577,-500.0,0.00019452,2]
[357968786,1744629043587,-500.0,0.00019452,2]
[357968787,1744629043598,-500.0,0.00019452,2]
[357968788,1744629043609,-645.97,0.00019452,2]
[357968789,1744629043619,-500.0,0.00019452,2]
[357968790,1744629043628,-864.37,0.00019452,2]
[357968791,1744629043637,-500.0,0.00019452,2]
[357968792,1744629043647,-500.0,0.00019452,2]
[357968793,1744629043656,-500.0,0.00019452,2]
[357968794,1744629043666,-1115.58,0.00019452,2]
[357968795,1744629043675,-500.0,0.00019452,2]
[357968796,1744629043685,-432.8462422,0.00019535,2]
[357968797,1744629043694,-500.0,0.00019616,2]
[357968798,1744629043703,-168.65,0.00019619,2]
[357968799,1744629043712,-432.8462422,0.00019626,2]
[357968800,1744629043721,-370.48724767,0.00019686,2]
[357968801,1744629043731,-227.76916964,0.00019699,2]
[357968802,1744629043741,-243.46456664,0.00019699,2]
[357968803,1744629043750,-91182.821673,0.000197,2]
[357968804,1744629043759,-1101.9410397,0.00019709,2]
[357968805,1744629043769,-432.8462422,0.00019717,2]
[357968806,1744629043779,-500.0,0.00019725,2]
[357968807,1744629043788,-500.0,0.00019726,2]
[357968808,1744629043798,-520.31,0.00019726,2]
[357968809,1744629043808,-873.57,0.00019726,2]
[357968810,1744629043818,-527.88,0.00019726,2]
[357968811,1744629043827,-526.7,0.00019726,2]
[357968812,1744629043836,-500.0,0.00019726,2]
[357968813,1744629043846,-560.50304149,0.00019726,2]
[357968814,1744629043855,-500.0,0.00019726,2]
[357968815,1744629043864,-649.46,0.00019726,2]
[357968816,1744629043874,-500.0,0.00019726,2]
[357968817,1744629043885,-500.0,0.00019726,2]
[357968818,1744629043895,-500.0,0.00019726,2]
[357968819,1744629043906,-353.56,0.00019726,2]
[357968820,1744629043917,-500.0,0.00019726,2]
[357968821,1744629043929,-300.85,0.00019726,2]
[357968822,1744629043939,-500.0,0.00019726,2]
[357968823,1744629043949,-500.0,0.00019726,2]
[357968824,1744629043961,-755.68,0.00019726,2]
[357968825,1744629043970,-500.0,0.00019726,2]
[357968826,1744629043979,-500.0,0.00019726,2]
[357968827,1744629043989,-500.0,0.00019726,2]
[357968828,1744629043999,-442.16,0.00019726,2]
[357968829,1744629044010,-500.0,0.00019726,2]
[357968830,1744629044022,-500.0,0.00019726,2]
[357968831,1744629044032,-500.0,0.00019726,2]
[357968832,1744629044042,-500.0,0.00019726,2]
[357968833,1744629044053,-500.0,0.00019726,2]
[357968834,1744629044063,-225.93,0.00019726,2]
[357968835,1744629044072,-500.0,0.00019726,2]
[357968836,1744629044082,-500.0,0.00019726,2]
[357968837,1744629044096,-500.0,0.00019726,2]
[357968838,1744629044107,-500.0,0.00019726,2]
[357968839,1744629044117,-769.05,0.00019726,2]
[357968840,1744629044126,-500.0,0.00019726,2]
[357968841,1744629044135,-1231.85,0.00019726,2]
[357968842,1744629044145,-28008.01,0.00019726,2]
[357968843,1744629044154,-500.0,0.00019726,2]
[357968844,1744629044163,-312.51950477,0.00019726,2]
[357968845,1744629044173,-500.0,0.00019726,2]
[357968846,1744629044184,-500.0,0.00019726,2]
[357968847,1744629044193,-500.0,0.00019726,2]
[357968848,1744629044202,-500.0,0.00019726,2]
[357968849,1744629044211,-3401.1,0.00019726,2]
[357968850,1744629044221,-500.0,0.00019726,2]
[357968851,1744629044232,-974.07,0.00019726,2]
[357968852,1744629044242,-500.0,0.00019726,2]
[357968853,1744629044251,-500.0,0.00019726,2]
[357968854,1744629044260,-500.0,0.00019726,2]
[357968855,1744629044270,-474.29,0.00019726,2]
[357968856,1744629044280,-347.45,0.00019726,2]
[357968857,1744629044290,-500.0,0.00019726,2]
[357968858,1744629044301,-645.97,0.00019726,2]
[357968859,1744629044310,-500.0,0.00019726,2]
[357968860,1744629044320,-864.37,0.00019726,2]
[357968861,1744629044329,-500.0,0.00019726,2]
[357968862,1744629044338,-500.0,0.00019726,2]
[357968863,1744629044348,-500.0,0.00019726,2]
[357968864,1744629044358,-1115.58,0.00019726,2]
[357968865,1744629044368,-500.0,0.00019726,2]
[357968866,1744629044378,-150.0,0.00019729,2]
[357968867,1744629044389,-1101.94103969,0.0001973,2]
[357968868,1744629044399,-390.43804741,0.00019735,2]
[357968869,1744629044409,-150.0,0.00019738,2]
[357968870,1744629044418,-150.0,0.00019743,2]
[357968871,1744629044427,-1101.94103969,0.00019751,2]
[357968872,1744629044436,-150.0,0.00019763,2]
[357968873,1744629044446,-150.0,0.00019772,2]
[357968874,1744629044455,-1101.94103969,0.00019773,2]
[357968875,1744629044464,-150.0,0.00019774,2]
[357968876,1744629044474,-370.48724768,0.00019783,2]
[357968877,1744629044483,-150.0,0.0001979,2]
[357968878,1744629044492,-1101.94103969,0.00019794,2]
[357968879,1744629044502,-1482.3766796,0.00019799,2]
[357968880,1744629044511,-150.0,0.000198,2]
[357968881,1744629044521,-12500.0,0.00019803,2]
[357968882,1744629044531,-432.8462422,0.00019809,2]
[357968883,1744629044540,-12500.0,0.00019812,2]
[357968884,1744629044551,-150.0,0.00019814,2]
[357968885,1744629044560,-150.0,0.00019815,2]
[357968886,1744629044569,-1101.94103969,0.00019815,2]
[357968887,1744629044579,-12500.0,0.00019821,2]
[357968888,1744629044588,-150.0,0.00019821,2]
[357968889,1744629044597,-150.0,0.00019822,2]
[357968890,1744629044607,-150.0,0.00019829,2]
[357968891,1744629044616,-12500.0,0.0001983,2]
[357968892,1744629044626,-1101.94103969,0.00019836,2]
[357968893,1744629044635,-150.0,0.00019838,2]
[357968894,1744629044645,-12500.0,0.00019838,2]
[357968895,1744629044654,-150.0,0.00019845,2]
[357968896,1744629044663,-12500.0,0.00019847,2]
[357968897,1744629044673,-262.96021529,0.00019849,2]
[357968898,1744629044683,-12500.0,0.00019856,2]
[357968899,1744629044693,-1101.94103969,0.00019858,2]
[357968900,1744629044702,-150.0,0.00019858,2]
[357968901,1744629044712,-150.0,0.00019861,2]
[357968902,1744629044721,-500.0,0.00019863,2]
[357968903,1744629044731,-197.97900291,0.00019863,2]
[357968904,1744629044740,-500.0,0.00019863,2]
[357968905,1744629044749,-500.0,0.00019863,2]
[357968906,1744629044758,-500.0,0.00019863,2]
[357968907,1744629044768,-500.0,0.00019863,2]
[357968908,1744629044777,-500.0,0.00019863,2]
[357968909,1744629044787,-500.0,0.00019863,2]
[357968910,1744629044796,-500.0,0.00019863,2]
[357968911,1744629044806,-500.0,0.00019863,2]
[357968912,1744629044815,-500.0,0.00019863,2]
[357968913,1744629044825,-500.0,0.00019863,2]
[357968914,1744629044834,-500.0,0.00019863,2]
[357968915,1744629044844,-561.95100679,0.00019863,2]
[357968916,1744629044853,-500.0,0.00019863,2]
[357968917,1744629044863,-500.0,0.00019863,2]
[357968918,1744629044873,-500.0,0.00019863,2]
[357968919,1744629044883,-500.0,0.00019863,2]
[357968920,1744629044892,-250.0,0.00019863,2]
[357968921,1744629044901,-12500.0,0.00019865,2]
[357968922,1744629044911,-150.0,0.00019871,2]
[357968923,1744629044921,-150.0,0.00019873,2]
[357968924,1744629044930,-12500.0,0.00019874,2]
[357968925,1744629044940,-1101.94103969,0.00019879,2]
[357968926,1744629044950,-12500.0,0.00019882,2]
[357968927,1744629044960,-191.71584393,0.0001989,2]
[357968928,1744629044969,-150.0,0.0001989,2]
[357968929,1744629044979,-2726.418,0.00019891,2]
[357968930,1744629044989,-12500.0,0.00019891,2]
[357968931,1744629044998,-189.27754714,0.000199,2]
[357968932,1744629045014,-12500.0,0.000199,2]
[357968933,1744629045026,-1760.46444872,0.000199,2]
[357968934,1744629045035,-375.23358628,0.000199,2]
[357968935,1744629045049,-1101.94103969,0.000199,2]
[357968936,1744629045060,-432.8462422,0.000199,2]
[357968937,1744629045069,-203.61373272,0.000199,2]
[357968938,1744629045079,-1000.0,0.000199,2]
[357968939,1744629045089,-11174.25201968,0.000199,2]
[357968940,1744629045098,-152.0,0.00019905,2]
[357968941,1744629045108,-1134.248,0.00019905,2]
[357968942,1744629045117,-150.0,0.00019906,2]
[357968943,1744629045127,-150.0,0.00019913,2]
[357968944,1744629045136,-150.0,0.00019921,2]
[357968945,1744629045146,-150.0,0.0001993,2]
[357968946,1744629045155,-259.22715001,0.00019935,2]
[357968947,1744629045164,-150.0,0.00019937,2]
[357968948,1744629045174,-150.0,0.00019944,2]
[357968949,1744629045184,-150.0,0.00019955,2]
[357968950,1744629045193,-578.81599954,0.00019973,2]
[357968951,1744629045202,-501.75534864,0.00019973,2]
[357968952,1744629045212,-500.0,0.00019973,2]
[357968953,1744629045221,-500.0,0.00019973,2]
[357968954,1744629045231,-502.248758,0.00019973,2]
[357968955,1744629045240,-500.0,0.00019973,2]
[357968956,1744629045249,-150.0,0.00019973,2]
[357968957,1744629045259,-150.0,0.00019975,2]
[357968958,1744629045269,-150.0,0.00019975,2]
[357968959,1744629045279,-150.0,0.00019983,2]
[357968960,1744629045289,-500.0,0.00019985,2]
[357968961,1744629045299,-150.0,0.00019985,2]
[357968962,1744629045309,-24510.2339074,0.00019986,2]
[357968963,1744629045319,-19586.4949229,0.00019986,2]
[357968964,1744629045329,-4627.3784438,0.00019986,2]
[357968965,1744629045338,-81490.8903821,0.00019986,2]
[357968966,1744629045348,-500.0,0.00019989,2]
[357968967,1744629045357,-248.88953447,0.00019999,5]
[357968968,1744629045367,-500.0,0.00019999,2]
[357968969,1744629045377,-865.56,0.00019999,2]
[357968970,1744629045387,-500.0,0.00019999,2]
[357968971,1744629045397,-500.0,0.00019999,2]
[357968972,1744629045406,-500.0,0.00019999,2]
[357968973,1744629045417,-500.0,0.00019999,2]
[357968974,1744629045427,-500.0,0.00019999,2]
[357968975,1744629045436,-486.44,0.00019999,2]
[357968976,1744629045446,-760.0,0.0002,2]
[357968977,1744629045456,-96080.23174524,0.0002,2]
[357968978,1744629045466,-810581.85250512,0.0002,2]
[357968979,1744629045499,-401.52230016,0.0002,2]
[357968993,1744629046287,-1359.7888779,0.00019986,2]
[357968994,1744629046297,-17806.3633221,0.0002,2]
[357968995,1744629046394,-836.2,0.000199,2]
[357968996,1744629053523,-212.44079702,0.00019178,2]
[357968997,1744629116628,159.934537,0.00025,30]
[357968998,1744629196234,-562.85,0.00018998,2]
[357968999,1744629196258,-300.0,0.00019177,2]
[357969000,1744629196281,-500.0,0.00019178,2]
[357969001,1744629196305,-500.0,0.00019178,2]
[357969002,1744629196328,-500.0,0.00019178,2]
[357969003,1744629196352,-507.81594577,0.00019178,2]
[357969004,1744629196377,-500.0,0.00019178,2]
[357969005,1744629196398,-500.0,0.00019178,2]
[357969006,1744629196421,-500.0,0.00019178,2]
[357969007,1744629196443,-500.0,0.00019178,2]
[357969008,1744629196465,-507.77060765,0.00019178,2]
[357969009,1744629196490,-500.0,0.00019178,2]
[357969010,1744629196511,-511.13046101,0.00019178,2]
[357969011,1744629196532,-210.43298557,0.00019178,2]
[357969013,1744629496649,1008.98,0.000195,3]
[357969014,1744629513331,-207.17,0.00018817,2]
[357969015,1744629513358,-161.47,0.00018913,2]
[357969016,1744629513389,-161.47,0.00018937,2]
[357969017,1744629513419,-161.47,0.0001896,2]
[357969018,1744629513448,-161.47,0.00018984,2]
[357969019,1744629513479,-161.47,0.00019008,2]
[357969020,1744629513510,-300.0,0.00019177,2]
[357969021,1744629513541,-300.0,0.00019177,2]
[357969022,1744629513570,-289.56701443,0.00019178,2]
[357969023,1744629513599,-500.0,0.00019178,2]
[357969024,1744629513627,-513.17396872,0.00019178,2]
[357969025,1744629513659,-500.0,0.00019178,2]
[357969026,1744629513690,-500.0,0.00019178,2]
[357969027,1744629513724,-500.0,0.00019178,2]
[357969028,1744629513751,-500.0,0.00019178,2]
[357969029,1744629513778,-500.0,0.00019178,2]
[357969030,1744629513812,-304.46,0.00019178,2]
[357969031,1744629513839,-503.79239307,0.00019178,2]
[357969032,1744629513866,-500.0,0.00019178,2]
[357969033,1744629513896,-500.0,0.00019178,2]
[357969034,1744629513923,-287.55920298,0.00019178,2]
[357969035,1744629513951,-500.0,0.00019178,2]
[357969036,1744629513981,-500.0,0.00019178,2]
[357969037,1744629514009,-500.0,0.00019178,2]
[357969038,1744629514038,-500.0,0.00019178,2]
[357969039,1744629514064,-500.0,0.00019178,2]
[357969040,1744629514091,-500.0,0.00019178,2]
[357969041,1744629514117,-500.0,0.00019178,2]
[357969042,1744629514143,-500.0,0.00019178,2]
[357969043,1744629514171,-500.0,0.00019178,2]
[357969044,1744629514203,-500.0,0.00019178,2]
[357969045,1744629514235,-500.0,0.00019178,2]
[357969046,1744629514263,-500.0,0.00019178,2]
[357969047,1744629514290,-500.0,0.00019178,2]
[357969048,1744629514316,-500.0,0.00019178,2]
[357969049,1744629514343,-500.0,0.00019178,2]
[357969050,1744629514370,-500.0,0.00019178,2]
[357969051,1744629514396,-378.97065004,0.00019178,2]
[357969052,1744629514422,-500.0,0.00019178,2]
[357969053,1744629514448,-500.0,0.00019178,2]
[357969054,1744629514479,-307.7,0.00019178,2]
[357969055,1744629514504,-500.0,0.00019178,2]
[357969056,1744629514530,-500.0,0.00019178,2]
[357969057,1744629514556,-268.03217353,0.00019178,2]
[357969058,1744629514581,-500.0,0.00019178,2]
[357969059,1744629514607,-442.53,0.00019178,2]
[357969060,1744629514632,-500.0,0.00019178,2]
[357969061,1744629514657,-350.51,0.00019178,2]
[357969062,1744629514684,-500.0,0.00019178,2]
[357969063,1744629514719,-500.0,0.00019178,2]
[357969064,1744629514749,-427.08,0.00019178,2]
[357969065,1744629514780,-500.0,0.00019178,2]
[357969066,1744629514810,-296.22303897,0.00019178,2]
[357969067,1744629514838,-281.73,0.00019178,2]
[357969068,1744629514866,-500.0,0.00019178,2]
[357969069,1744629514894,-500.0,0.00019178,2]
[357969070,1744629514923,-500.0,0.00019178,2]
[357969071,1744629514952,-500.0,0.00019178,2]
[357969072,1744629514986,-367.55287478,0.00019178,2]
[357969073,1744629515015,-500.0,0.00019178,2]
[357969074,1744629515042,-837.17,0.00019178,2]
[357969075,1744629515071,-500.0,0.00019178,2]
[357969076,1744629515098,-500.0,0.00019178,2]
[357969077,1744629515126,-692.7,0.00019178,2]
[357969078,1744629515153,-1069.1,0.00019178,2]
[357969079,1744629515178,-500.0,0.00019178,2]
[357969080,1744629515201,-500.0,0.00019178,2]
[357969081,1744629515228,-500.0,0.00019178,2]
[357969082,1744629515511,-502.52825717,0.00019178,2]
[357969083,1744629515553,-500.0,0.00019178,2]
[357969084,1744629515577,-500.0,0.00019178,2]
[357969085,1744629515601,-500.0,0.00019178,2]
[357969086,1744629515624,-500.0,0.00019178,2]
[357969087,1744629515647,-500.0,0.00019178,2]
[357969088,1744629515669,-500.0,0.00019178,2]
[357969089,1744629515693,-352.86,0.00019178,2]
[357969090,1744629515718,-500.0,0.00019178,2]
[357969091,1744629515742,-500.0,0.00019178,2]
[357969092,1744629515764,-500.0,0.00019178,2]
[357969093,1744629515786,-500.0,0.00019178,2]
[357969094,1744629515810,-500.0,0.00019178,2]
[357969095,1744629515831,-533.85,0.00019178,2]
[357969096,1744629515852,-500.0,0.00019178,2]
[357969097,1744629515874,-500.0,0.00019178,2]
[357969098,1744629515896,-500.0,0.00019178,2]
[357969099,1744629515917,-500.0,0.00019178,2]
[357969100,1744629515939,-500.0,0.00019178,2]
[357969101,1744629515961,-500.0,0.00019178,2]
[357969102,1744629515983,-526.7,0.00019178,2]
[357969103,1744629516005,-500.0,0.00019178,2]
[357969104,1744629516029,-500.0,0.00019178,2]
[357969105,1744629516054,-810.27,0.00019178,2]
[357969106,1744629516078,-500.0,0.00019178,2]
[357969107,1744629516101,-500.0,0.00019178,2]
[357969108,1744629516124,-500.0,0.00019178,2]
[357969109,1744629516147,-500.0,0.00019178,2]
[357969110,1744629516170,-540.6,0.00019178,2]
[357969111,1744629516196,-500.0,0.00019178,2]
[357969112,1744629516224,-500.0,0.00019178,2]
[357969113,1744629516247,-500.0,0.00019178,2]
[357969114,1744629516273,-13740.82042631,0.00019178,2]
[357969115,1744629603622,350.0,0.00019265,12]
[357969117,1744629817069,154.579224,0.00025,30]
[357969118,1744629817524,154.579224,0.00024275,30]
[357969119,1744629818054,154.579224,0.0002355,30]
[357969120,1744629848433,604.6,0.00016935,2]
[357969121,1744629937147,-912.21,0.00018799,2]
[357969122,1744629937172,-292.62,0.00018808,2]
[357969123,1744629937195,-246.23,0.00018826,2]
[357969124,1744629937218,-212.44,0.00018859,2]
[357969125,1744629937242,-250.0,0.00018872,2]
[357969126,1744629937265,-106.44739999,0.00019078,2]
[357969127,1744629937720,3647.95376314,9e-05,2]
[357969128,1744629968763,1771.5232329,8e-05,2]
[357969129,1744629991547,1972.69054668,0.00015,2]
[357969130,1744630033384,1790.57478572,0.00015,2]
[357969131,1744630037145,212.65767156,0.00015,2]
[357969132,1744630037169,9787.34232844,0.00015,2]
[357969133,1744630080756,212.65767156,0.0001,2]
[357969134,1744630080779,10000.0,0.0001,2]
[357969135,1744630080800,3716.65098401,0.0001,2]
[357969163,1744630232235,-1000.0,0.00018788,2]
[357969164,1744630232245,-200.0,0.00018813,2]
[357969165,1744630232255,-432.8462422,0.00019078,2]
[357969166,1744630232265,-432.8462422,0.00019169,2]
[357969167,1744630232275,-300.0,0.00019177,2]
[357969168,1744630232284,-200.0,0.00019178,2]
[357969169,1744630232294,-411.69084837,0.00019178,2]
[357969170,1744630232304,-500.0,0.00019178,2]
[357969171,1744630232314,-500.0,0.00019178,2]
[357969172,1744630232324,-500.0,0.00019178,2]
[357969173,1744630232334,-500.0,0.00019178,2]